Workbook

Sheet Table of Contents
B4: Table of Contents
B6: Worksheets | F6: Description
B8: Input Sheet | F8: This sheet contains simplified input for checking component values using the macros
B10: Device Calculator | F10: This sheet is where all calculations are performed. It can be used independently to select or verify component values.
B12: Schematic Checklist
B14: Layout Checklist
B16: About
B18: Help

Sheet Input Sheet
I1: Table of Contents
B4: Input Sheet | G4: *Selected*
B5: Parameter | C5: Units | D5: Type | E5: Default | F5: Design Example | G5: Design 1 | H5: end
B6: Rail Name | D6: Req | F6: TPS54KB20EVM (U2) | J6: Macro Directions:
B7: ='Device Calculator'!B9 -> Part Number | D7: Req | F7: TPS54KB20
B8: ='Device Calculator'!B30 -> Vin_min | C8: V | D8: Opt | E8: Vin_typ*0.8 | F8: 4.5 | J8: Check/Calculate Selected Column
B9: ='Device Calculator'!B31 -> Vin_typ | C9: V | D9: Req | F9: 12 | J9: Select any cell in the column corresponding to the design you want to check.
B10: ='Device Calculator'!B32 -> Vin_max | C10: V | D10: Opt | E10: Vin_typ*1.1 | F10: 16 | J10: Click on "Check/Calculate Selected Column" to send the input values to the Device Calculator worksheet
B11: ='Device Calculator'!B33 -> Vout | C11: V | D11: Req | F11: 3.3 | J11: The calculated results from the Device Calculator are then pulled back to this sheet for component value verification.
B12: ='Device Calculator'!B34 -> Iout | C12: A | D12: Opt | E12: Iout_max_IC | F12: 25
B13: ='Device Calculator'!B69 -> dVout_ripple_perc | D13: Opt | E13: 0.01 | F13: 0.01 | J13: Insert New Design
B14: ='Device Calculator'!B68 -> dVout_trans_perc | D14: Opt | E14: 0.04 | F14: 0.03 | J14: Click on “Insert New Design” to add another column for checking a different design.
B15: ='Device Calculator'!B67 -> Iout_step | C15: A | D15: Opt | E15: Iout*0.5 | F15: 10 | J15: To delete a design that is no longer needed, right-click on the column letter and select “delete.”
B16: ='Device Calculator'!B104 -> RMSEL | D16: Req | E16: R_MSEL_rec | F16: 86.6
B17: ='Device Calculator'!B105 -> fsw_select | C17: kHz | D17: Calc | F17: 800
B18: ='Device Calculator'!B106 -> LL_mode_select | D18: Calc | F18: Skip-mode | J18: Pull Values from Calculator Sheet
B19: ='Device Calculator'!B107 -> RAMP_select | D19: Calc | F19: RAMP1 | J19: The DeviceCalculator worksheet provides additional details to aid in the design process.
B20: ='Device Calculator'!B42 -> Kind | D20: Opt | E20: 0.3 | F20: 0.3 | J20: Updates to the design can be made in the DeviceCalculator sheet.
B21: ='Device Calculator'!B47 -> Lout | C21: µH | D21: Opt | E21: Lout_rec | F21: 0.47 | J21: After making updates, click on "Pull Values from Calculator Sheet" to use the updated values on the Device Calculator sheet and verify them.
B22: ='Device Calculator'!B48 -> DCR | C22: mΩ | D22: Opt | E22: Rdson_ls | F22: 1.1
B23: ='Device Calculator'!B49 -> Tol_Lout | D23: Opt | E23: 0.2 | F23: 0.2 | J23: Check/Calculate All Columns
B24: ='Device Calculator'!B60 -> RILIM | C24: kΩ | D24: Opt | E24: RILIM_NSV | F24: 4.32 | J24: This option runs the “Check/Calculate Selected Column” process on all designs.
B25: ='Device Calculator'!B62 -> Iout_lim_min | C25: A | D25: Calc | F25: 28.67021277
B26: ='Device Calculator'!B84 -> N_cer | D26: Opt | E26: 1 | F26: 7
B27: ='Device Calculator'!B81 -> Cout_single_cer | C27: µF | D27: Opt | E27: Cout_min/0.8 | F27: 22
B28: ='Device Calculator'!B83 -> ESR_single_cer | C28: mΩ | D28: Opt | E28: 1 | F28: 3
B29: ='Device Calculator'!B82 -> Cer_derating | D29: Opt | E29: 0.8 | F29: 0.58
B30: ='Device Calculator'!B90 -> N_bulk | D30: Opt | E30: 0 | F30: 2
B31: ='Device Calculator'!B87 -> Cout_single_bulk | C31: µF | D31: Opt | E31: 0.1 | F31: 220
B32: ='Device Calculator'!B89 -> ESR_single_bulk | C32: mΩ | D32: Opt | E32: 1 | F32: 7
B33: ='Device Calculator'!B88 -> Bulk_derating | D33: Opt | E33: 1 | F33: 1
B34: ='Device Calculator'!B94 -> Vout_undershoot | C34: mV | D34: Calc | F34: 78.27496956
B35: ='Device Calculator'!B95 -> Vout_overshoot | C35: mV | D35: Calc | F35: 13.45351039
B36: ='Device Calculator'!B97 -> Vout_ripple | C36: mV | D36: Calc | F36: 12.02362064
B37: ='Device Calculator'!B113 -> Vin_ripple_perc | D37: Opt | E37: 0.04 | F37: 0.04
B38: ='Device Calculator'!B117 -> Cin_cer | C38: µF | D38: Opt | E38: Cin_min/0.5 | F38: 60
B39: ='Device Calculator'!B118 -> Cin_derating | D39: Opt | E39: 0.5 | F39: 0.5
B40: ='Device Calculator'!B120 -> Vin_ripple | C40: mV | D40: Calc | F40: 101.8518519
B41: ='Device Calculator'!B124 -> Rfb_b | C41: kΩ | D41: Opt | E41: Rfb_b_rec | F41: 3.01
B42: ='Device Calculator'!B127 -> Rfb_t | C42: kΩ | D42: Opt | E42: Rfb_t_NSV | F42: 8.06
B43: ='Device Calculator'!B128 -> Vout_calc | C43: V | D43: Calc | F43: 3.309966777
B44: ='Device Calculator'!B133 -> Cff | C44: pF | D44: Opt | E44: Cff_NSV | F44: 120
B45: ='Device Calculator'!B138 -> Css | C45: nF | D45: Opt | E45: 22 | F45: 39
B46: ='Device Calculator'!B139 -> Tss | C46: ms | D46: Calc | F46: 0.975
B47: ='Device Calculator'!B143 -> Ren_b | C47: kΩ | D47: Opt | E47: 0 | F47: 100
B48: ='Device Calculator'!B147 -> Ren_t | C48: kΩ | D48: Opt | E48: 0 | F48: 200
B49: ='Device Calculator'!B148 -> Vstart_typ | C49: kΩ | D49: Calc | F49: 3.84
B50: ='Device Calculator'!B149 -> Vstop_typ | C50: kΩ | D50: Calc | F50: 3.2
B51: ='Device Calculator'!B157 -> Cvcc | C51: µF | D51: Opt | E51: Cvcc_rec | F51: 1
B52: ='Device Calculator'!B159 -> Cboot | C52: µF | D52: Opt | E52: Cboot_rec | F52: 0.1
B53: ='Device Calculator'!B161 -> Rpg | C53: kΩ | D53: Opt | E53: Rpg_rec | F53: 10
B54: RMSEL_check | D54: Check | F54: Pass
B55: Lout_check | D55: Check | F55: Pass
B56: RILIM_check | D56: Check | F56: Pass
B57: Cout_check | D57: Check | F57: Pass
B58: Stability_check | D58: Check | F58: Pass
B59: Cin_check | D59: Check | F59: Pass
B60: FB_network_check | D60: Check | F60: Pass
B61: EN_divider_check | D61: Check | F61: Pass
B62: Vin_check | D62: Check | F62: Pass
B63: Cvcc_Cboot_Rpg_check | D63: Check | F63: Pass

Sheet Device Calculator
H1: Table of Contents
B4: Device Calculator | J4: Key
B5: Parameter | C5: Input | D5: Recommended | E5: Selected Value | F5: Calculated with Selected Value | G5: Units | H5: Description | J5: User Entered Value
J6: Design Caution (Yellow)
J7: Design Warning (Red)
B8: Choose Device
B9: Part Number | C9: TPS54KB20 | H9: IC part number (for differences, see table on the right) | J9: Part Number | K9: IOUT,MAX | L9: VREF | M9: Fault Response
B10: Vin_min_IC | C10: ='Part Data'!B2 -> 4 | G10: V | H10: IC rated minimum input voltage | J10: TPS54KB20 | K10: 25A | L10: 0.9V | M10: Latch-off
B11: Vin_max_IC | C11: ='Part Data'!C2 -> 16 | G11: V | H11: IC rated maximum input voltage | J11: TPS54KB21 | K11: 25A | L11: 0.5V | M11: Latch-off
B12: Iout_max_IC | C12: ='Part Data'!D2 -> 25 | G12: A | H12: IC rated maximum output current | J12: TPS54KB22 | K12: 25A | L12: 0.9V | M12: Hiccup
B13: Ven_R | C13: ='Part Data'!T2 -> 1.2 | G13: V | H13: Typical EN voltage rising threshold | J13: TPS54KB23 | K13: 25A | L13: 0.5V | M13: Hiccup
B14: Ven_F | C14: ='Part Data'!U2 -> 1 | G14: V | H14: Typical EN voltage falling threshold | J14: TPS54KC23 | K14: 30A | L14: 0.5V | M14: Hiccup
B15: Vvcc | C15: ='Part Data'!M2 -> 3 | G15: V | H15: Typical internal LDO output voltage
B16: Vfb_reg | C16: ='Part Data'!J2 -> 0.9 | G16: V | H16: Typical feedback regulation voltage (0.5V, 0.9V)
B17: Iss | C17: ='Part Data'!S2 -> 36 | G17: µA | H17: Typical soft-start charge current
B18: Rdson_HS | C18: ='Part Data'!P2 -> 5.8 | G18: mΩ | H18: Typical high-side MOSFET on-resistance
B19: Rdson_LS | C19: ='Part Data'!Q2 -> 2.3 | G19: mΩ | H19: Typical low-side MOSFET on-resistance
B20: ton_min | C20: ='Part Data'!I2 -> 30 | G20: ns | H20: Typical minimum on-time
B21: toff_min_max | C21: ='Part Data'!O2 -> 150 | G21: ns | H21: Typical minimum off-time
B22: OC_response | C22: ='Part Data'!K2 -> Latch Off | H22: Overcurrent fault response (Latch Off, Hiccup)
B23: OV_response | C23: ='Part Data'!L2 -> Latch Off | H23: Overvoltage fault response (Latch Off, Hiccup)
B24: OC_clamp | C24: ='Part Data'!H2 -> 27.5 | G24: A | H24: Typical OC limit high clamp (27.5A, 30.6A)
B25: K_OCL | C25: ='Part Data'!R2 -> 120000 | H25: Gain for Rilim calculation (120000, 134000)
B26: RILIM_min | C26: ='Part Data'!W2 -> 0 | G26: kΩ | H26: Minimum ILIM pin resistance
B27: RILIM_max | C27: ='Part Data'!X2 -> 20 | G27: kΩ | H27: Maximum ILIM pin resistance
B28: ILS_NOC_max | C28: ='Part Data'!V2 -> -7.5 | G28: A | H28: Maximum low-side negative current limit
B29: Input System Parameters
B30: Vin_min | C30: 4.5 | G30: V | H30: Minimum input voltage (4V - 16V)
B31: Vin_typ | C31: 12 | G31: V | H31: Typical input voltage (4V - 16V)
B32: Vin_max | C32: 16 | G32: V | H32: Maximum input voltage (4V - 16V)
B33: Vout | C33: 3.3 | G33: V | H33: ="Output Voltage ("&Vfb_reg&"V - 5.5V)" -> Output Voltage (0.9V - 5.5V) | J33: Calculated Component Values Summary
B34: Iout | C34: 25 | G34: A | H34: ="Output Current (up to "&Iout_max_IC&"A)" -> Output Current (up to 25A)
B35: Select the Switching Frequency and the Operation Mode under Light Load | J35: RMSEL | K35: =D103 -> 86.6 | L35: kΩ
B36: fsw_max_ton | F36: =Vout/Vin_max*1/(ton_min_sec)*0.001 -> 6875 | G36: kHz | H36: Maximum switching frequency allowed limited by Vin_max and ton_min | J36: Lout | K36: =Lout -> 0.47 | L36: µH
B37: fsw_max_toff | F37: =(Vin_min-Vout-Iout*2*(DCR_Ohm+Rdson_hs_ohm))/(toff_min_max_sec*(Vin_min-Iout*2*(Rdson_hs_ohm-Rdson_b_Ohm)))*10^-3 -> 1317.919075 | G37: kHz | H37: Maximum switching frequency allowed limited by Vin_min and toff_min_max (Depends on inductor DCR and includes 2x multiplier on resistance for margin) | J37: Cout | K37: =Cout -> 529.32 | L37: µF
B38: fsw_input | C38: =fsw_select -> 800 | G38: kHz | H38: Input desired switching frequency (800kHz, 1100kHz, 1400kHz) | J38: RILIM | K38: =RILIM_calc -> 4.363636364 | L38: kΩ
B39: LL_mode_input | C39: =LL_mode_select -> Skip-mode | H39: Input desired operation mode under light load (FCCM, Skip-mode) | J39: Cin | K39: =Cin_cer -> 60 | L39: µF
B40: Choose the Output Inductor (Lout) | J40: Rfb_b | K40: =Rfb_b -> 3.01 | L40: kΩ
B41: The inductance is selected based on a p-p ripple current target. Smaller L reduces solution size while larger L reduces AC loss. | J41: Rfb_t | K41: =Rfb_t -> 8.06 | L41: kΩ
B42: Kind | C42: 0.3 | G42: % | H42: Target ripple/Iout ratio (typically between 15% to 40%) | J42: Cff | K42: =Cff -> 120 | L42: pF
B43: Lout_target | D43: =((Vin_max-Vout)*Vout)/(Iout*Kind*Vin_max*fsw_input)*1000 -> 0.4365625 | G43: µH | H43: Inductor value based on the target ripple/Iout ratio | J43: Css | K43: =Css -> 39 | L43: nF
B44: Lout_min | D44: =((Vin_max-Vout)*Vout)/(Iout_max_IC*0.5*Vin_max*fsw_input)*1000 -> 0.2619375 | G44: µH | H44: Minimum recommended inductance (ripple = 50% Iout_max_IC) | J44: Ren_t | K44: =Ren_t -> 200 | L44: kΩ
B45: Lout_max | D45: =((Vin_max-Vout)*Vout)/(Iout_max_IC*0.1*Vin_max*fsw_input)*1000 -> 1.3096875 | G45: µH | H45: Maximum recommended inductance (ripple = 10% Iout_max_IC) | J45: Ren_b | K45: =Ren_b -> 100 | L45: kΩ
B46: Lout_rec | D46: =MIN(MAX(D44,D43),D45) -> 0.4365625 | G46: µH | H46: Recommended inductance value | J46: Cvcc | K46: =MAX(1,Cvcc) -> 1 | L46: µF
B47: Lout | E47: 0.47 | G47: µH | H47: Selected inductance | J47: Cboot | K47: =MAX(0.1,Cboot) -> 0.1 | L47: µF
B48: DCR | E48: 1.1 | G48: mΩ | H48: DC resistance of selected inductor | J48: Rpg | K48: =Rpg -> 10 | L48: kΩ
B49: Tol_Lout | E49: 0.2 | G49: % | H49: Tolerance of inductance for selected inductor
B50: Iripple_max | F50: =(Vin_max-Vout)*Vout/(Lout_H*(1-Tol_Lout)*Vin_max*fsw_input*1000) -> 8.70802859 | G50: A | H50: Inductor ripple current at Vin_max (Includes Tol_L. Used for DC ripple calculations)
B51: Ipeak | F51: =Iout+(Iripple_max/2) -> 29.3540143 | G51: A | H51: Full load peak current at Vin_max
B52: Irms | F52: =SQRT(Iout^2+(Iripple_max^2)/12) -> 25.12606509 | G52: A | H52: Inductor rms current at Vin_max
B53: Iripple_min | F53: =((Vin_min-Vout)*Vout)/(Lout_H*(1+Tol_Lout)*Vin_min*fsw_input*1000) -> 1.95035461 | H53: Inductor ripple current at Vin_min (includes Tol_L)
B54: Ivalley | F54: =Iout-(Iripple_min/2) -> 24.0248227 | G54: A | H54: Full load valley current at Vin_min (used for current limit setting calculations)
B55: Set current limit (RILIM)
B56: Ilim_valley_rec | D56: =MIN((Iout+Iripple_min/2)/Tol_Ilim,OC_clamp) -> 27.5 | G56: A | H56: Recommended valley current limit setting (Includes margin for Tol_Lout and Ilim tolerance)
B57: Ilim_valley_input | C57: 27.5 | G57: A | H57: Input target valley current limit setting
B58: RILIM_calc | D58: =MAX(RILIM_min,MIN(RILIM_max,10^-3*K_OCL/Ilim_valley_input)) -> 4.363636364 | G58: kΩ | H58: Calculated RILIM
B59: RILIM_NSV | D59: =RILIM_NSV -> 4.32 | G59: kΩ | H59: Round down to nearest E96 standard value
B60: RILIM | E60: 4.32 | G60: kΩ | H60: Selected RILIM (0Ω - 20kΩ)
B61: Ilim_valley | F61: =MIN(IFERROR(K_OCL/(RILIM*1000),OC_clamp),OC_clamp) -> 27.5 | G61: A | H61: Estimated typical valley current limit with selected RILIM
B62: Iout_lim_min | F62: =Ilim_valley+1/2*(Vin_min-Vout)*Vout/(Lout_H*Vin_min*fsw_input*1000) -> 28.67021277 | G62: A | H62: Estimated minimum Iout at current limit
B63: Iout_lim_typ | F63: =Ilim_valley+1/2*(Vin_typ-Vout)*Vout/(Lout_H*Vin_typ*fsw_input*1000) -> 30.68151596 | G63: A | H63: Estimated typical Iout at current limit
B64: Ipeak_lim | F64: =Ilim_valley+Iripple_max -> 36.20802859 | G64: A | H64: Estimated maximum peak inductor current at current limit
B65: Choose the Output Capacitor (Cout)
B66: The output capacitance is deteremind based on the output ripple, transient and stability requirements.
B67: Iout_step | C67: 10 | G67: A | H67: Iout load transient step
B68: dVout_trans_perc | C68: 0.03 | G68: % | H68: Target Vout overshoot/undershoot after load step as a percentage of Vout
B69: dVout_ripple_perc | C69: 0.01 | G69: % | H69: Target steady state Vout voltage ripple as a percentage of Vout
B70: dVout_trans | D70: =dVout_trans_perc*Vout*10^3 -> 99 | G70: mV | H70: Target Vout overshoot/undershoot after load step
B71: dVout_ripple | D71: =dVout_ripple_perc*Vout*10^3 -> 33 | G71: mV | H71: Target steady state Vout voltage ripple
B72: Cout_ripple | D72: =Iripple_max/(8*dVout_ripple*10^-3*fsw_input*1000)*10^6 -> 41.23119598 | G72: µF | H72: Min Cout for DC ripple requirement (ignores ESR)
B73: Cout_undershoot | D73: =((Lout*Iout_step^2)*(Vout/(Vin_min*fsw_input*1000)+toff_min_max_sec))/(2*dVout_trans*10^-3*Vout*((Vin_min-Vout)/(Vin_min*fsw_input*1000)-toff_min_max_sec)) -> 418.5101706 | G73: µF | H73: Min Cout for undershoot requirement
B74: Cout_overshoot | D74: =Lout*Iout_step^2/(2*Vout*dVout_trans*10^-3) -> 71.93143557 | G74: µF | H74: Min Cout for overshoot requirement
B75: Cout_stability | D75: =(1/(2*PI()*fp_RAMP4*1000*(1+(Vout/Vin_typ)^2)))^2*1/Lout_H*10^6 -> 113.0390644 | G75: µF | H75: Min Cout for stability
B76: Cout_min | D76: =(MAX(D72:D75)) -> 418.5101706 | G76: µF | H76: Recommended min Cout (must include any derating due to DC/AC bias, temp and/or tolerance)
B77: Cout_max | D77: =(50/(PI()*fsw_input*1000))^2*1/Lout_H*1000000 -> 842.0976034 | G77: µF | H77: Max Cout for stability (f_LC > fsw/100) (Exceeding this may be ok but further validation is required)
B78: ESR_trans | D78: =dVout_trans/Iout_step -> 9.9 | G78: mΩ | H78: Max effective ESR to meet load step transient requirement
B79: ESR_ripple | D79: =dVout_ripple/Iripple_max -> 3.789606299 | G79: mΩ | H79: Max effective ESR to meet ripple requirement
B80: ESR_max | D80: =MIN(D78:D79) -> 3.789606299 | G80: mΩ | H80: Recommended max effective ESR (when using mixed type output capacitors, it may be possible for bulk capacitance to have higher ESR)
B81: Cout_single_cer | E81: 22 | G81: µF | H81: Nominal value of a Single Ceramic Output Capacitor
B82: Cer_derating | E82: 0.58 | G82: % | H82: Percentage of Nominal Ceramic Capacitance remaining after Tolerance, Thermal, and DC Bias derating
B83: ESR_single_cer | E83: 3 | G83: mΩ | H83: Single Ceramic Capacitor ESR
B84: N_cer | E84: 7 | H84: Number of Ceramic Capacitors
B85: Cout_cer | F85: =IF(N_cer=0,0.001,N_cer*Cout_single_cer*Cer_derating) -> 89.32 | G85: uF | H85: Total Ceramic Output Capacitance
B86: ESR_cer | F86: =IF(N_cer=0,0,E83/N_cer) -> 0.4285714286 | G86: mΩ | H86: Effective Ceramic Capacitance ESR
B87: Cout_single_bulk | E87: 220 | G87: uF | H87: Nominal value of a Single Bulk/Polymer/Electrolytic Output Capacitor
B88: Bulk_derating | E88: 1 | H88: Percentage of Nominal Bulk Capacitance remaining after Tolerance, Thermal, and DC Bias derating
B89: ESR_single_bulk | E89: 7 | G89: mΩ | H89: Single Bulk Capacitor ESR
B90: N_bulk | E90: 2 | H90: Number of Bulk Capacitors (Input 0 if only ceramic capacitance is used)
B91: Cout_bulk | F91: =IF(N_bulk=0,0.001,N_bulk*Cout_single_bulk*Bulk_derating) -> 440 | G91: µF | H91: Total Bulk Output Capacitance
B92: ESR_bulk | F92: =IF(N_bulk=0,10^9,ESR_single_bulk/N_bulk) -> 3.5 | G92: mΩ | H92: Effective Bulk Capacitance ESR
B93: Cout | F93: =Cout_bulk+Cout_cer -> 529.32 | G93: uF | H93: Total Bulk + Ceramic Output Capacitance
B94: Vout_undershoot | F94: =(Lout_H*Iout_step^2)*(Vout/(Vin_min*fsw_input*1000)+toff_min_max_sec)/(2*Cout_F*Vout*((Vin_min-Vout)/(Vin_min*fsw_input*1000)-toff_min_max_sec))*10^3 -> 78.27496956 | G94: mV | H94: Estimated undershoot (ignores ESR and ESL)
B95: Vout_overshoot | F95: =(Lout_H*Iout_step^2/(2*Vout*Cout_F))*10^3 -> 13.45351039 | G95: mV | H95: Estimated overshoot (ignores ESR and ESL)
B96: Zout_fsw | F96: =1/(1/(SQRT((ESR_bulk*10^-3)^2+1/(2*PI()*fsw_input*10^3*Cout_bulk*10^-6)^2))+1/(SQRT((ESR_cer*10^-3)^2+1/(2*PI()*fsw_input*10^3*Cout_cer*10^-6)^2)))*1000 -> 1.380751167 | G96: mΩ | H96: Output Impedance at Swiching Frequency
B97: Vout_ripple | F97: =Iripple_max*Zout_fsw -> 12.02362064 | G97: mV | H97: Estimated capacitive + resistive DC ripple (ignores ESL)
B98: f_LC | F98: =1/(2*PI()*SQRT(Lout_H*Cout_F))*10^-3 -> 10.09048522 | G98: kHz | H98: LC resonant frequency
B99: f_ESR_cer | F99: =1/(2*PI()*Cout_cer*10^-6*ESR_cer*10^-3)*10^-3 -> 4157.652641 | G99: kHz | H99: Ceramic capacitor ESR zero frequency
B100: f_ESR_bulk | F100: =IF(N_bulk=0,"N/A",1/(2*PI()*Cout_bulk*10^-6*ESR_bulk*10^-3)*10^-3) -> 103.3473656 | G100: kHz | H100: Bulk capacitor ESR zero frequency
B101: Select the Ramp Option (MSEL pin)
B102: RAMP_input | C102: =RAMP_select -> RAMP1 | H102: Input desired RAMP option (RAMP1, RAMP2, RAMP3, RAMP4) | J102: Selectable RAMP Options
B103: RMSEL_rec | D103: =RMSEL_rec -> 86.6 | G103: kΩ | H103: MSEL pin connection or resistor to AGND with input values | J103: RAMP Options | K103: fp_max
B104: RMSEL | E104: 86.6 | G104: kΩ | H104: Selected MSEL pin connection or resistor to AGND | J104: RAMP1 | K104: =fp_RAMP1*(1+(Vout/Vin_typ)^2) -> 15.05875
B105: fsw_select | F105: =fsw_select -> 800 | G105: kHz | H105: fsw with selected MSEL configuration | J105: RAMP2 | K105: =fp_RAMP2*(1+(Vout/Vin_typ)^2) -> 19.6839375
B106: LL_mode_select | F106: =LL_mode_select -> Skip-mode | H106: Light load operation mode with selected MSEL configuration | J106: RAMP3 | K106: =fp_RAMP3*(1+(Vout/Vin_typ)^2) -> 19.6839375
B107: RAMP_select | F107: =RAMP_select -> RAMP1 | H107: RAMP option with selected MSEL configuration | J107: RAMP4 | K107: =fp_RAMP4*(1+(Vout/Vin_typ)^2) -> 21.8351875
B108: fp_max | F108: =f_table*(1+(Vout/Vin_typ)^2) -> 15.05875 | G108: kHz | H108: Maximum L-C double pole frequency with selected MSEL configuration
B109: fp_RAMP4 | F109: =fp_RAMP4 -> 20.3 | G109: kHz | H109: Maximum L-C double pole frequency with RAMP4 (used for Cout_stability calculation)
B110: Stability | F110: =IF(f_LC<fp_max,"GOOD","BAD") -> GOOD | H110: If BAD, go back and increase Cout, Lout, or select higher RAMP option with RMSEL
B111: Choose the Input Capacitor (Cin)
B112: The input capacitance is deteremind based on the input ripple requirements. Additional bulk input capacitance may be needed for transients. 0.1µF high frequency bypass capacitors are also required.
B113: Vin_ripple_perc | C113: 0.04 | G113: % | H113: Target DC input ripple voltage percentage
B114: Vin_ripple_target | D114: =Vin_min*Vin_ripple_percent*10^3 -> 180 | G114: mV | H114: Target DC input voltage ripple (Vin_ripple_percent of Vin_min)
B115: Q_input | D115: =(Iout*(1-Vout/Vin_min)*Vout)/(fsw_input*1000*Vin_min)*10^6 -> 6.111111111 | G115: µC | H115: Charge per switching cycle (Vin_min)
B116: Cin_min | D116: =MAX(Q_input/Vin_ripple_target*10^3,20) -> 33.95061728 | G116: µF | H116: Minimum input capacitance required
B117: Cin_cer | E117: 60 | G117: µF | H117: Selected total input ceramic capacitance
B118: Cin_derating | E118: 0.5 | H118: Percentage of Nominal Ceramic Capacitance remaining after Tolerance, Thermal, and DC Bias derating
B119: Cin_eff | F119: =Cin_cer*Cin_derating -> 30 | G119: µF | H119: Effective total input ceramic capacitance
B120: Vin_ripple | F120: =Q_input/Cin_cer*10^3 -> 101.8518519 | G120: mV | H120: Input DC ripple
B121: Iin_rms | F121: =SQRT(Vout/Vin_min*((1-Vout/Vin_min)*Iout^2+ (Iripple_max^2)/12)) -> 11.26304858 | G121: A | H121: Input RMS current
B122: Determine feedback network values (FB resistor divider and Cff)
B123: Rfb_b_rec | D123: 10 | G123: kΩ | H123: Bottom feedback resistor (1kΩ-20kΩ recommended)
B124: Rfb_b | E124: 3.01 | G124: kΩ | H124: Selected bottom feedback resistor
B125: Rfb_t_target | D125: =Rfb_b*(Vout/Vfb_reg-1) -> 8.026666667 | G125: kΩ | H125: Calculated top feedback resistor
B126: Rfb_t_NSV | D126: ='Part Data'!U15 -> 8.06 | G126: kΩ | H126: Nearest Standard Value 1%
B127: Rfb_t | E127: 8.06 | G127: kΩ | H127: Selected top feedback resistor
B128: Vout_calc | F128: =Vfb_reg*(1+Rfb_t/Rfb_b) -> 3.309966777 | G128: V | H128: Calculated Vout
B129: FF_cap? | D129: =IF(AND(f_LC<(fsw_input/50),N_bulk=0),"YES","NO") -> NO | H129: Feedforward cap recommended?
B130: fz_cff_div_f_LC | D130: 10 | H130: Recommended location of fz_cff relative to f_LC
B131: Cff_calc | D131: =1/(2*PI()*(fz_cff_div_f_LC*f_LC*10^3)*Rfb_t*10^3)*10^12 -> 195.6919852 | G131: pF | H131: Recommended feedforward cap value
B132: Cff_NSV | D132: =IF(Cff_calc<10000,VLOOKUP((10^(LOG(Cff_calc)-INT(LOG(Cff_calc)))),c_s1:C_f1,1),VLOOKUP((10^(LOG(Cff_calc)-INT(LOG(Cff_calc)))),C_s2:C_f2,1))*10^INT(LOG(Cff_calc)) -> 180 | G132: pF | H132: Nearest Standard Value
B133: Cff | E133: 120 | G133: pF | H133: Selected feedforward cap value
B134: fz_cff | F134: =IF(Cff<>0,1/(2*PI()*Cff*0.000000001*(Rfb_t)*1000),"N/A") -> 164.5522571 | G134: kHz | H134: Frequency of zero added by the feedforward cap
B135: Soft-start capacitor (Css)
B136: Tss_target | C136: 1 | G136: ms | H136: Target soft-start time
B137: Css_calc | D137: =MIN(MAX(10,(Iss*Tss_target)/Vfb_reg ),1000) -> 40 | G137: nF | H137: Calculated SS capacitor
B138: Css | E138: 39 | G138: nF | H138: Selected SS capacitor (Must be in the range of 10nF and 1uF)
B139: Tss | F139: =MAX(0,Css*Vfb_reg /Iss) -> 0.975 | G139: ms | H139: SS time with selected SS capacitor
B140: EN pin resistor divider (Ren_b, Ren_t)
B141: Vstart_target | C141: 3.85 | G141: V | H141: Target turn on voltage set by EN resistor divider
B142: Ren_b_rec | D142: 10 | G142: kΩ | H142: 1k-100k recommended
B143: Ren_b | E143: 100 | G143: kΩ | H143: Selected bottom resistor in EN pin resistor divider (Input 0 if not used)
B144: Ren_b_eff | F144: =Ren_b*1000/(Ren_b+1000) -> 90.90909091 | G144: kΩ | H144: Effective bottom resistance including 1-MΩ internal pull-down resistance on EN pin
B145: Ren_t_calc | D145: =Ren_b_eff*Vstart_target/Ven_R-Ren_b_eff -> 200.7575758 | G145: kΩ | H145: Calculated top resistor
B146: Ren_t_NSV | D146: ='Part Data'!U16 -> 200 | G146: kΩ | H146: Nearest Standard Value 1%
B147: Ren_t | E147: 200 | G147: kΩ | H147: Selected top resistor in EN pin resistor divider (Input 0 if not used)
B148: Vstart_typ | F148: =IF(OR(Ren_b=0,Ren_t=0),"N/A",Ven_R*(Ren_b_eff+Ren_t)/Ren_b_eff) -> 3.84 | G148: V | H148: Estimated typical turn on voltage with selected resistors
B149: Vstop_typ | F149: =IF(OR(Ren_b=0,Ren_t=0),"N/A",Ven_F*(Ren_b_eff+Ren_t)/Ren_b_eff) -> 3.2 | G149: V | H149: Estimated typical turn off voltage with selected resistors
B150: Ven_max | F150: =IF(OR(Ren_b=0,Ren_t=0),"N/A",Vin_max*Ren_b_eff/(Ren_t+Ren_b_eff)) -> 5 | G150: V | H150: Estimated maximum voltage at EN pin at max input voltage (Red if exceeding 5.5V abs max rating)
B151: Operating Input Voltage Range
B152: fsw_select | F152: =fsw_select -> 800 | G152: kHz | H152: Chosen switching frequency
B153: Minimum_Vin | F153: =IF(2*Iout*(Rdson_hs_ohm-Rdson_b_Ohm)-(Vout+2*Iout*(DCR_Ohm+Rdson_b_Ohm))/(fsw_select_Hz*toff_min_max_sec-1)<Vin_min_IC,Vin_min_IC,2*Iout*(Rdson_hs_ohm-Rdson_b_Ohm)-(Vout+2*Iout*(DCR_Ohm+Rdson_b_Ohm))/(fsw_select_Hz*toff_min_max_sec-1)) -> 4.118181818 | G153: V | H153: Minimum input voltage allowed for proper function, based on fsw and minimum off-time
B154: Maximum_Vin | F154: =IF(Vout/fsw_select_Hz*1/(ton_min_sec)*0.95>Vin_max_IC,Vin_max_IC,Vout/fsw_select_Hz*1/(ton_min_sec)*0.95) -> 16 | G154: V | H154: Maximum input voltage allowed for proper function, based on fsw and minimum on-time
B155: VCC bypass capacitor, BOOT capacitor, PG resistor (Cvcc, Cboot, Rpg)
B156: Cvcc_rec | D156: 1 | G156: µF | H156: VCC Bypass Capacitor. At a minimum, 1uF, > 6.3V, ceramic capacitor from VCC to PGND
B157: Cvcc | E157: 1 | G157: µF | H157: Selected Cvcc
B158: Cboot_rec | D158: 0.1 | G158: µF | H158: BOOT Capacitor. At a minimum, 0.1uF, 10V, ceramic capacitor from BOOT to SW
B159: Cboot | E159: 0.1 | G159: µF | H159: Selected BOOT Capacitor
B160: Rpg_rec | D160: 10 | G160: Ω | H160: PG Pullup Resistor (1k-100k recommended)
B161: Rpg | E161: 10 | G161: kΩ | H161: Selected Rpg

Sheet Schematic Checklist
I1: Table of Contents
B4: Schematic Checklist
B5: Pin | C5: Name | D5: Purpose | E5: Connection For Functional Use | F5: Reasoning | G5: Component Values from Design Calculations | H5: Status | I5: Comments
B6: Control
B7: 14 | C7: FB divider | D7: Output feedback input | E7: Ensure that the feedback divider network gives the appropriate Vout based on the Vref chosen. The FB pin must be connected to the AGND pin. | G7: =CONCATENATE("Rfb_t = ",Rfb_t," kΩ"," Rfb_b = ",Rfb_b," kΩ") -> Rfb_t = 8.06 kΩ Rfb_b = 3.01 kΩ | H7: Open
B8: 14 | C8: FB Cff | D8: Output feedback input | E8: Add a capacitor in parallel with the top feedback resistor | F8: Improves transient response and may be required for sufficient phase margin or minimizing output ripple | G8: =IF(FF_cap?="NO","N/A",CONCATENATE("Cff = ",ROUND(Cff,0)," pF")) -> N/A | H8: Open
B9: Configuration
B10: 11 | C10: MSEL | D10: fsw, FCCM/Skip-mode, and RAMP | E10: Connect a resistor from MSEL pin to AGND pin. 1% or better tolerance resistor is required. Use MSEL Pin Selection table to select the desired mode. | G10: =CONCATENATE(RMSEL," kΩ") -> 86.6 kΩ | H10: Open
B11: 11 | C11: MSEL fsw setting | D11: fsw selection | E11: Selected fsw should be below the maximum limits calculated in the calculator tab | F11: When exceeding fsw_max_ton, the fsw will decrease but the output will still be regulated. When exceeding fsw_max_toff, the output will become unregulated and UVP may trip. | G11: =CONCATENATE("fsw_max_ton = ",ROUND(fsw_max_ton,0)," kHz"," fsw_max_toff = ",ROUND(fsw_max_toff,0)," kHz") -> fsw_max_ton = 6875 kHz fsw_max_toff = 1318 kHz | H11: Open
B12: 12 | C12: ILIM | D12: OCL detection threshold setting pin | E12: Connect the resistor from the ILIM pin to the AGND pin. Use WEBENCH or calculator to calculate the RILIM resistor value. Recommend 1% or better resistors for RILIM. | G12: =CONCATENATE("Valley ILIM = ",ROUND(Ilim_valley,2)," A ","RTRIP = ",ROUND(RILIM,2)," kΩ") -> Valley ILIM = 27.5 A RTRIP = 4.32 kΩ | H12: Open
B13: 15 | C13: SS | D13: Soft-start time | E13: Connecting a capacitor from this pin to AGND pin programs soft-start time. A minimum 10-nF capacitor is required. | G13: =CONCATENATE("CSS = ",ROUND(Css,0)," nF") -> CSS = 39 nF | H13: Open
B14: 10 | C14: PGOOD | D14: Open drain power good flag | E14: Connect a 1k-100k resistor to pull-up this pin. Recommend pulling up to VCC but not required. | F14: PGOOD pin is an open-drain output so a pull-up is required when used | G14: =CONCATENATE("Rpg = ",ROUND(Rpg,0)," kΩ") -> Rpg = 10 kΩ | H14: Open
B15: 1 | C15: EN | D15: Enable pin | E15: Floating this pin is not recommended. To start switching, this pin must be pulled high. The recommended max voltage rating on the EN pin is 5.5V. Do not connect EN pin directly to VIN unless the max VIN for your application is below 5.5V. When using VIN or VDD to drive the EN pin, use a resistor divider and ensure that the voltage stays below 6V. | G15: =CONCATENATE("Ren_t = ",Ren_t," kΩ"," Ren_b = ",Ren_b," kΩ") -> Ren_t = 200 kΩ Ren_b = 100 kΩ | H15: Open
B16: 2 | C16: AGND | D16: Ground reference for control circuits | E16: AGND must be connected to PGND | H16: Open
B17: Power Stage
B18: 3, 9 (VIN), 4, 8 (PGND) | C18: VIN-PGND cap | D18: Conversion power input | E18: A minimum of 20-µF input capacitance is required | F18: The input capacitor Cin should be able to give minimum ripple voltage desired for the application. Use WEBENCH or calculator to calculate the input capacitance. | G18: =CONCATENATE("Cin > ",ROUND(Cin_min,1)," µF") -> Cin > 34 µF | H18: Open
B19: 3, 9 (VIN), 4, 8 (PGND) | C19: VIN-PGND hf cap | D19: Conversion power input | E19: Include a 0.1µF-1µF 0402 input capacitor on each VIN pin (pin 3 and 9) | F19: Minimizes high frequency voltage overshoots and undershoots from switching | G19: Cin_hf >= 0.1 µF | H19: Open
B20: 5 | C20: BOOT cap | D20: Supply input for high-side FET gate driver | E20: Connect at least 100-nF capacitor from the BOOT pin to the SW pin. The BOOT capacitor should be at least 10-V rated, X5R, and 0402 size. | F20: 10-V rating, X5R or better dielectric, and 0402 size or larger ensure stable capacitance across all operating conditions | G20: =CONCATENATE("Cboot >= ",ROUND(Cboot,2)," µF") -> Cboot >= 0.1 µF | H20: Open
B21: 6 | C21: SW | D21: Switching node | E21: Connect this pin to the output inductor | H21: Open
B22: 6 | C22: SW snubber | D22: Switching node | E22: Optional RC Snubber from SW to PGND. This component can be not populated. | F22: If the SW pin ringing is too high, helps minimize high frequency voltage overshoots and undershoots from switching Capacitor: Minimum 25V rating to support SW voltage Resistor: Minimum 0805 package to support power loss. | H22: Open
B23: N/A | C23: Lout | D23: Output inductor | E23: Use the recommended inductance in WEBENCH or calculator to meet design requirements | G23: =CONCATENATE(ROUND(Lout_min,2)," < Lout < ",ROUND(Lout_max,2)," µH") -> 0.26 < Lout < 1.31 µH | H23: Open
B24: N/A | C24: Cout | D24: Output capacitors | E24: Use the recommended capacitance in WEBENCH or calculator to meet ripple and transient requirements | F24: The maximum Cout is a recommendation only. Exceeding this may be acceptable but the stability should be evaluated by measuring the load step response or bode plot. | G24: =CONCATENATE(ROUND(Cout_min,0)," < Cout < ",ROUND(Cout_max,0)," µF") -> 419 < Cout < 842 µF | H24: Open
B25: 7 | C25: VCC | D25: Internal 3-V LDO output | E25: Require at least 1-µF, 6.3-V rating ceramic capacitor from VCC pin to PGND pins as the bypass capacitor. 2.2-µF recommended. | F25: Minimum capacitance required for stability of the internal regulator. | G25: Cvcc >= 1 µF | H25: Open
B26: 7 | C26: VCC | D26: Internal 3-V LDO output | E26: An external bias with 3.3-V can be connected to this pin to save the power losses on the internal LDO | H26: Open

Sheet Layout Checklist
H1: Table of Contents
B4: Layout Checklist
B5: Pin | C5: Name | D5: Purpose | E5: Placement or Routing? | F5: Remarks | G5: Status | H5: Comments
B6: Power Stage
B7: 3, 9, 16 (VIN), 4, 8 (PGND), 6 (SW) | C7: VIN, PGND, SW | E7: Placement and Routing | F7: VIN, PGND, and SW traces must be as wide as possible to reduce trace impedance and improve heat dissipation. | G7: Open
B8: N/A | C8: Cout and Lout | D8: Output filter inductor and capacitors | E8: Placement and Routing | F8: Place the power components (including input and output capacitors, the inductor, and the IC) on the top side of the PCB. To shield and isolate the small signal traces from noisy power lines, insert at least one solid ground inner plane. | G8: Open
B9: 3, 9 (VIN), 4, 8 (PGND) | C9: VIN-PGND caps | D9: Conversion power input | E9: Placement | F9: Placement of the VIN decoupling capacitors are important for the power MOSFET robustness. A 1-μF/25-V/0402 ceramic high-frequency bypass capacitor on each VIN pin (pin 3 and 9) is required, connected to the adjacent PGND pins (pin 4 and 8 respectively). Place the remaining ceramic input capacitance next to these high frequency bypass capacitors. The remaining input capacitance can be placed on the other side of the board, but use as many vias as possible to minimize impedance between the capacitors and the pins of the IC. | G9: Open
B10: 4, 8, 16 | C10: PGND | E10: Routing | F10: Place eight vias below the PGND pins (pins 4, 8, and 16) and as many vias as possible near the PGND pins (pin 4 and 8). This action minimizes parasitic impedance and also lowers thermal resistance. | G10: Open
B11: 3, 9 | C11: VIN | E11: Routing | F11: Use vias near both VIN pins and provide a low impedance connection between them through an internal layer. A via can also be placed below each of the VIN pins. | G11: Open
B12: 7 | C12: VCC cap | D12: Internal 3-V LDO output | E12: Placement | F12: Place the VCC decoupling capacitor as close as possible to the device, with a short return to PGND pin 8. Ensure the VCC decoupling loop is small and use traces with a width of 12 mil or wider to route the connection. | G12: Open
B13: 5 | C13: BOOT cap | D13: Supply input for high-side FET gate driver | E13: Placement | F13: Place the BOOT capacitor as close as possible to the BOOT and SW pins. Use traces with a width of 12 mil or wider to route the connection. | G13: Open
B14: 6 | C14: SW | D14: Switching node | E14: Routing | F14: The PCB trace, which connects the SW pin and high-voltage side of the inductor, is defined as switch node. The switch node must be as short and wide as possible. | G14: Open
B15: 6 | C15: SW snubber | D15: Switching node | E15: Placement and Routing | F15: Optional If used, place the RC snubber on the opposite side of the board from the IC with multiple vias in the SW node to minimize routing impedance and with a very low impedance return to PGND pins. | G15: Open
B16: Control and Configuration
B17: 14 (FB), 13 (GOSNS) | C17: FB, GOSNS | D17: Output feedback input | E17: Routing | F17: Always place the feedback resistors near the device to minimize the FB trace distance, no matter single-end sensing or remote sensing. – For remote sensing, the connections from the FB voltage divider resistors to the remote location must be a differential pair of PCB traces, and must implement Kelvin sensing across a bypass capacitor of 0.1 μF or higher. The ground connection of the remote sensing signal must be connected to GOSNS pin. The VOUT connection of the remote sensing signal must be connected to the feedback resistor divider with the bottom feedback resistor terminated to the GOSNS pin. To maintain stable output voltage and minimize the ripple, the pair of remote sensing lines must stay away from any noise sources such as inductor and SW nodes, or high frequency clock lines. TI recommends to shield the pair of remote sensing lines with ground planes above and below. – For single-end sensing, connect the top feedback resistor between the FB pin and the output voltage to a high-frequency local output bypass capacitor of 0.1 μF or higher, and short GOSNS to AGND with a short trace. | G17: Open
B18: 12, 14, 15 | C18: MSEL, ILIM, SS | D18: MSEL selection, Current limit, and soft-start timing | E18: Placement | F18: Return the MSEL resistor, ILIM resistor, and SS capacitor to a quiet AGND island. | G18: Open
B19: 2 | C19: AGND | D19: Ground reference for control circuits | E19: Routing | F19: Connect the AGND pin (pin 2) to the PGND pad (pin 16) beneath the device. | G19: Open
B20: 10 | C20: PGOOD | D20: Open drain power good | E20: Placement and Routing | F20: Avoid routing the PG signal and any other noisy signals in the application near noise sensitive signals, such as ILIM, FB and GOSNS to limit coupling. | G20: Open
B21: 1 | C21: EN | D21: Enable pin | E21: Placement and Routing | F21: All components and routing for the EN pin should be placed away from any high voltage switch node (itself and others), such as SW and BOOT to avoid noise coupling. | G21: Open

Sheet Part Data (hidden)
A1: Selected Device
A2: =VLOOKUP('Device Calculator'!$C$9,'Part Data'!$A$6:$AB$10,A4,FALSE) -> TPS54KB20 | B2: =VLOOKUP('Device Calculator'!$C$9,'Part Data'!$A$6:$AB$10,B4,FALSE) -> 4 | C2: =VLOOKUP('Device Calculator'!$C$9,'Part Data'!$A$6:$AB$10,C4,FALSE) -> 16 | D2: =VLOOKUP('Device Calculator'!$C$9,'Part Data'!$A$6:$AB$10,D4,FALSE) -> 25 | E2: =VLOOKUP('Device Calculator'!$C$9,'Part Data'!$A$6:$AB$10,E4,FALSE) -> 800 | F2: =VLOOKUP('Device Calculator'!$C$9,'Part Data'!$A$6:$AB$10,F4,FALSE) -> 1100 | G2: =VLOOKUP('Device Calculator'!$C$9,'Part Data'!$A$6:$AB$10,G4,FALSE) -> 1400 | H2: =VLOOKUP('Device Calculator'!$C$9,'Part Data'!$A$6:$AB$10,H4,FALSE) -> 27.5 | I2: =VLOOKUP('Device Calculator'!$C$9,'Part Data'!$A$6:$AB$10,I4,FALSE) -> 30 | J2: =VLOOKUP('Device Calculator'!$C$9,'Part Data'!$A$6:$AB$10,J4,FALSE) -> 0.9 | K2: =VLOOKUP('Device Calculator'!$C$9,'Part Data'!$A$6:$AB$10,K4,FALSE) -> Latch Off | L2: =VLOOKUP('Device Calculator'!$C$9,'Part Data'!$A$6:$AB$10,L4,FALSE) -> Latch Off | M2: =VLOOKUP('Device Calculator'!$C$9,'Part Data'!$A$6:$AB$10,M4,FALSE) -> 3 | N2: =VLOOKUP('Device Calculator'!$C$9,'Part Data'!$A$6:$AB$10,N4,FALSE) -> 4 | O2: =VLOOKUP('Device Calculator'!$C$9,'Part Data'!$A$6:$AB$10,O4,FALSE) -> 150 | P2: =VLOOKUP('Device Calculator'!$C$9,'Part Data'!$A$6:$AB$10,P4,FALSE) -> 5.8 | Q2: =VLOOKUP('Device Calculator'!$C$9,'Part Data'!$A$6:$AB$10,Q4,FALSE) -> 2.3 | R2: =VLOOKUP('Device Calculator'!$C$9,'Part Data'!$A$6:$AB$10,R4,FALSE) -> 120000 | S2: =VLOOKUP('Device Calculator'!$C$9,'Part Data'!$A$6:$AB$10,S4,FALSE) -> 36 | T2: =VLOOKUP('Device Calculator'!$C$9,'Part Data'!$A$6:$AB$10,T4,FALSE) -> 1.2 | U2: =VLOOKUP('Device Calculator'!$C$9,'Part Data'!$A$6:$AB$10,U4,FALSE) -> 1 | V2: =VLOOKUP('Device Calculator'!$C$9,'Part Data'!$A$6:$AB$10,V4,FALSE) -> -7.5 | W2: =VLOOKUP('Device Calculator'!$C$9,'Part Data'!$A$6:$AB$10,W4,FALSE) -> 0 | X2: =VLOOKUP('Device Calculator'!$C$9,'Part Data'!$A$6:$AB$10,X4,FALSE) -> 20 | Y2: =VLOOKUP('Device Calculator'!$C$9,'Part Data'!$A$6:$AB$10,Y4,FALSE) -> 4.934518113 | Z2: =VLOOKUP('Device Calculator'!$C$9,'Part Data'!$A$6:$AB$10,Z4,FALSE) -> 30.95929374 | AA2: =VLOOKUP('Device Calculator'!$C$9,'Part Data'!$A$6:$AB$10,AA4,FALSE) -> 0.1257924995 | AB2: =VLOOKUP('Device Calculator'!$C$9,'Part Data'!$A$6:$AB$10,AB4,FALSE) -> 0
A4: 1 | B4: 2 | C4: 3 | D4: 4 | E4: 5 | F4: 6 | G4: 7 | H4: 8 | I4: 9 | J4: 10 | K4: 11 | L4: 12 | M4: 13 | N4: 14 | O4: 15 | P4: 16 | Q4: 17 | R4: 18 | S4: 19 | T4: 20 | U4: 21 | V4: 22 | W4: =V4+1 -> 23 | X4: =W4+1 -> 24 | Y4: =X4+1 -> 25 | Z4: 26 | AA4: 27 | AB4: 28 | AC4: 0
A5: Part # | B5: VIN_min | C5: VIN_max | D5: Io,rated | E5: Fsw_1 | F5: Fsw_2 | G5: Fsw_3 | H5: OC clamp | I5: tonmin | J5: Vfb_reg | K5: OC Fault | L5: OV Fault | M5: VCC LDO Voltage | N5: VIN_min_bias | O5: toffmin | P5: R_HS | Q5: R_LS | R5: K_OCL | S5: I_ss | T5: EN_rise | U5: EN_fall | V5: Ioc_neg_max | W5: RILIM_min | X5: RILIM_max | Y5: R_ILIM_calc | Z5: Ilim_min | AA5: ILIM_Tol | AB5: Rboot_rec | AC5: =AC101/10 -> 0.001
A6: TPS54KB20 | B6: 4 | C6: 16 | D6: 25 | E6: 800 | F6: 1100 | G6: 1400 | H6: 27.5 | I6: 30 | J6: 0.9 | K6: Latch Off | L6: Latch Off | M6: 3 | N6: 4 | O6: 150 | P6: 5.8 | Q6: 2.3 | R6: 120000 | S6: 36 | T6: 1.2 | U6: 1 | V6: -7.5 | W6: 0 | X6: 20 | Y6: =MAX(PartData[[#This Row],[RILIM_min]],MIN(PartData[[#This Row],[RILIM_max]],10^-3*R6/(Ilim_valley_input-(Vin_typ-Vout)*Vout/(2*Vin_typ*Lout*fsw_select*10^-3)))) -> 4.934518113 | Z6: =PartData[[#This Row],[K_OCL]]/(RILIM*10^3)+1/2*(Vin_typ-Vout)*Vout/Vin_typ*1/(Lout*fsw_select*10^-3) -> 30.95929374 | AA6: =(Z6-Ilim_valley)/Ilim_valley -> 0.1257924995 | AB6: 0 | AC6: =AC102/10 -> 0.00102
A7: TPS54KB21 | B7: 4 | C7: 16 | D7: 25 | E7: 800 | F7: 1100 | G7: 1400 | H7: 27.5 | I7: 30 | J7: 0.5 | K7: Latch Off | L7: Latch Off | M7: 3 | N7: 4 | O7: 150 | P7: 5.8 | Q7: 2.3 | R7: 120000 | S7: 36 | T7: 1.2 | U7: 1 | V7: -7.5 | W7: 0 | X7: 20 | Y7: =MAX(PartData[[#This Row],[RILIM_min]],MIN(PartData[[#This Row],[RILIM_max]],10^-3*R7/(Ilim_valley_input-(Vin_typ-Vout)*Vout/(2*Vin_typ*Lout*fsw_select*10^-3)))) -> 4.934518113 | Z7: =PartData[[#This Row],[K_OCL]]/(RILIM*10^3)+1/2*(Vin_typ-Vout)*Vout/Vin_typ*1/(Lout*fsw_select*10^-3) -> 30.95929374 | AA7: =(Z7-Ilim_valley)/Ilim_valley -> 0.1257924995 | AC7: 0.00105
A8: TPS54KB22 | B8: 4 | C8: 16 | D8: 25 | E8: 800 | F8: 1100 | G8: 1400 | H8: 27.5 | I8: 30 | J8: 0.9 | K8: Hiccup | L8: Hiccup | M8: 3 | N8: 4 | O8: 150 | P8: 5.8 | Q8: 2.3 | R8: 120000 | S8: 36 | T8: 1.2 | U8: 1 | V8: -7.5 | W8: 0 | X8: 20 | Y8: =MAX(PartData[[#This Row],[RILIM_min]],MIN(PartData[[#This Row],[RILIM_max]],10^-3*R8/(Ilim_valley_input-(Vin_typ-Vout)*Vout/(2*Vin_typ*Lout*fsw_select*10^-3)))) -> 4.934518113 | Z8: =PartData[[#This Row],[K_OCL]]/(RILIM*10^3)+1/2*(Vin_typ-Vout)*Vout/Vin_typ*1/(Lout*fsw_select*10^-3) -> 30.95929374 | AA8: =(Z8-Ilim_valley)/Ilim_valley -> 0.1257924995 | AC8: 0.00107
A9: TPS54KB23 | B9: 4 | C9: 16 | D9: 25 | E9: 800 | F9: 1100 | G9: 1400 | H9: 27.5 | I9: 30 | J9: 0.5 | K9: Hiccup | L9: Hiccup | M9: 3 | N9: 4 | O9: 150 | P9: 5.8 | Q9: 2.3 | R9: 120000 | S9: 36 | T9: 1.2 | U9: 1 | V9: -7.5 | W9: 0 | X9: 20 | Y9: =MAX(PartData[[#This Row],[RILIM_min]],MIN(PartData[[#This Row],[RILIM_max]],10^-3*R9/(Ilim_valley_input-(Vin_typ-Vout)*Vout/(2*Vin_typ*Lout*fsw_select*10^-3)))) -> 4.934518113 | Z9: =PartData[[#This Row],[K_OCL]]/(RILIM*10^3)+1/2*(Vin_typ-Vout)*Vout/Vin_typ*1/(Lout*fsw_select*10^-3) -> 30.95929374 | AA9: =(Z9-Ilim_valley)/Ilim_valley -> 0.1257924995 | AC9: 0.0011
A10: TPS54KC23 | B10: 4 | C10: 16 | D10: 30 | E10: 800 | F10: 1100 | G10: 1400 | H10: 30.6 | I10: 30 | J10: 0.5 | K10: Hiccup | L10: Hiccup | M10: 3 | N10: 4 | O10: 150 | P10: 5.8 | Q10: 2.3 | R10: 134000 | S10: 36 | T10: 1.2 | U10: 1 | V10: -7.5 | W10: 0 | X10: 20 | Y10: =MAX(PartData[[#This Row],[RILIM_min]],MIN(PartData[[#This Row],[RILIM_max]],10^-3*R10/(Ilim_valley_input-(Vin_typ-Vout)*Vout/(2*Vin_typ*Lout*fsw_select*10^-3)))) -> 5.510211893 | Z10: =PartData[[#This Row],[K_OCL]]/(RILIM*10^3)+1/2*(Vin_typ-Vout)*Vout/Vin_typ*1/(Lout*fsw_select*10^-3) -> 34.20003448 | AA10: =(Z10-Ilim_valley)/Ilim_valley -> 0.2436376173 | AC10: 0.00113
AC11: 0.00115
AC12: 0.00118
AC13: 0.00121
V14: Extra step to round down | AC14: 0.00124
C15: fsw_input | D15: LL_mode_input | E15: RAMP_input | S15: Rfb_t_NSV | T15: ='Device Calculator'!D125 -> 8.026666667 | U15: =INDEX(NSV,MATCH(MIN(ABS(NSV-T15)),ABS(NSV-T15),0)) -> 8.06 | AC15: 0.00127
C16: 800 | D16: FCCM | E16: RAMP4 | S16: Ren_t_NSV | T16: ='Device Calculator'!D145 -> 200.7575758 | U16: =INDEX(NSV,MATCH(MIN(ABS(NSV-T16)),ABS(NSV-T16),0)) -> 200 | AC16: 0.0013
C17: 1100 | D17: Skip-mode | E17: RAMP3 | S17: RILIM_NSV | T17: =RILIM_calc -> 4.363636364 | U17: =INDEX(NSV,MATCH(MIN(ABS(NSV-T17)),ABS(NSV-T17),0)) -> 4.32 | V17: =INDEX(NSV,MATCH(MIN(ABS(NSV-T17/1.024)),ABS(NSV-T17/1.024),0)) -> 4.22 | W17: =IF(U17<=T17,U17,V17) -> 4.32 | AC17: 0.00133
C18: 1400 | E18: RAMP2 | AC18: 0.00137
E19: RAMP1 | AC19: 0.0014
AC20: 0.00143
AC21: 0.00147
AC22: 0.0015
AC23: 0.00154
AC24: 0.00158
AC25: 0.00162
AC26: 0.00165
C27: MIN | D27: TYP | AC27: 0.00169
C28: 25 | D28: 27.5 | AC28: 0.00174
C29: 17.9 | D29: 22.1 | AC29: 0.00178
C30: 13 | D30: 16.2 | AC30: 0.00182
C31: 8.5 | D31: 11.1 | AC31: 0.00187
C32: 4 | D32: 5.9 | AC32: 0.00191
AC33: 0.00196
AC34: =AC130/10 -> 0.002
C35: Ivalley (min) | D35: =0.86*Ivalley - 1.0391 -> 19.62224752 | AC35: 0.00205
C36: Tol_Ilim | D36: =D35/Ivalley -> 0.8167489004 | AC36: 0.0021
AC37: 0.00215
AC38: 0.00221
AC39: 0.00226
AC40: 0.00232
AC41: 0.00237
AC42: 0.00243
AC43: 0.00249
AC44: 0.00255
AC45: 0.00261
AC46: 0.00267
AC47: 0.00274
AC48: 0.0028
AC49: 0.00287
AC50: 0.00294
AC51: 0.00301
AC52: 0.00309
AC53: 0.00316
AC54: 0.00324
AC55: 0.00332
AC56: 0.0034
AC57: 0.00348
AC58: 0.00357
AC59: 0.00365
AC60: 0.00374
AC61: 0.00383
AC62: 0.00392
AC63: 0.00402
AC64: 0.00412
AC65: 0.00422
AC66: =AC162/10 -> 0.00432
AC67: 0.00442
AC68: 0.00453
AC69: 0.00464
AC70: 0.00475
AC71: 0.00487
AC72: 0.00499
AC73: 0.00511
AC74: 0.00523
AC75: 0.00536
AC76: 0.00549
AC77: 0.00562
AC78: 0.00576
AC79: 0.0059
AC80: 0.00604
AC81: 0.00619
AC82: 0.00634
AC83: 0.00649
AC84: =AC180/10 -> 0.00665
AC85: =AC181/10 -> 0.00681
AC86: 0.00698
AC87: 0.00715
AC88: 0.00732
AC89: 0.0075
AC90: 0.00768
AC91: 0.00787
AC92: 0.00806
AC93: 0.00825
AC94: 0.00845
AC95: 0.00866
AC96: 0.00887
AC97: 0.00909
AC98: 0.00931
AC99: 0.00953
AC100: 0.00976
AC101: 0.01
AC102: 0.0102
AC103: 0.0105
AC104: 0.0107
AC105: 0.011
AC106: 0.0113
AC107: 0.0115
AC108: 0.0118
AC109: 0.0121
AC110: 0.0124
AC111: 0.0127
AC112: 0.013
AC113: 0.0133
AC114: 0.0137
AC115: 0.014
AC116: 0.0143
AC117: 0.0147
AC118: 0.015
AC119: 0.0154
AC120: 0.0158
AC121: 0.0162
AC122: 0.0165
AC123: 0.0169
AC124: 0.0174
AC125: 0.0178
AC126: 0.0182
AC127: 0.0187
AC128: 0.0191
AC129: 0.0196
AC130: 0.02
AC131: 0.0205
AC132: 0.021
AC133: 0.0215
AC134: 0.0221
AC135: 0.0226
AC136: 0.0232
AC137: 0.0237
AC138: 0.0243
AC139: 0.0249
AC140: 0.0255
AC141: 0.0261
AC142: 0.0267
AC143: 0.0274
AC144: 0.028
AC145: 0.0287
AC146: 0.0294
AC147: 0.0301
AC148: =AC244/10 -> 0.0309
AC149: 0.0316
AC150: 0.0324
AC151: 0.0332
AC152: 0.034
AC153: 0.0348
AC154: 0.0357
AC155: 0.0365
AC156: 0.0374
AC157: 0.0383
AC158: 0.0392
AC159: 0.0402
AC160: 0.0412
AC161: 0.0422
AC162: 0.0432
AC163: 0.0442
AC164: 0.0453
AC165: 0.0464
AC166: 0.0475
AC167: 0.0487
AC168: 0.0499
AC169: 0.0511
AC170: 0.0523
AC171: 0.0536
AC172: 0.0549
AC173: 0.0562
AC174: 0.0576
AC175: 0.059
AC176: 0.0604
AC177: 0.0619
AC178: 0.0634
AC179: 0.0649
AC180: 0.0665
AC181: 0.0681
AC182: 0.0698
AC183: 0.0715
AC184: 0.0732
AC185: 0.075
AC186: 0.0768
AC187: 0.0787
AC188: 0.0806
AC189: 0.0825
AC190: 0.0845
AC191: 0.0866
AC192: 0.0887
AC193: 0.0909
AC194: 0.0931
AC195: 0.0953
AC196: 0.0976
AC197: 0.1
AC198: 0.102
AC199: 0.105
AC200: 0.107
AC201: 0.11
... 380 more rows

Sheet MSEL (hidden)
B1: User Input:
B2: fsw_input | C2: =fsw_input -> 800
B3: LL_mode_input | C3: =LL_mode_input -> Skip-mode
B4: RAMP | C4: =RAMP_sel -> RAMP1
B6: Recommended:
B7: RMSEL_rec | C7: =IFERROR(INDEX(MSEL!$B$24:$B$47,A22),"INVALID INPUTS") -> 86.6
B9: User Selected:
B10: RMSEL | C10: =RMSEL -> 86.6
B12: Calculated:
B13: fsw_select | C13: =VLOOKUP(RMSEL,MSEL!$B$24:$F$47,C22,FALSE) -> 800
B14: LL_mode_select | C14: =VLOOKUP(RMSEL,MSEL!$B$24:$F$47,D22,FALSE) -> Skip-mode
B15: RAMP_select | C15: =VLOOKUP(RMSEL,MSEL!$B$24:$F$47,E22,FALSE) -> RAMP1
B16: f_table | C16: =VLOOKUP(RMSEL,MSEL!$B$24:$F$47,F22,FALSE) -> 14
B17: fp_RAMP4 | C17: =SUMPRODUCT((MSEL[FSW (kHz)]=fsw_input)*(MSEL[RAMP]=D17)*(MSEL[f_table (kHz)]))/2 -> 20.3 | D17: RAMP4
B18: fp_RAMP3 | C18: =SUMPRODUCT((MSEL[FSW (kHz)]=fsw_input)*(MSEL[RAMP]=D18)*(MSEL[f_table (kHz)]))/2 -> 18.3 | D18: RAMP3
B19: fp_RAMP2 | C19: =SUMPRODUCT((MSEL[FSW (kHz)]=fsw_input)*(MSEL[RAMP]=D19)*(MSEL[f_table (kHz)]))/2 -> 18.3 | D19: RAMP2
B20: fp_RAMP1 | C20: =SUMPRODUCT((MSEL[FSW (kHz)]=fsw_input)*(MSEL[RAMP]=D20)*(MSEL[f_table (kHz)]))/2 -> 14 | D20: RAMP1
A22: =MATCH(1,(C2=MSEL[FSW (kHz)])*(C3=MSEL[Mode])*(C4=MSEL[RAMP]),0) -> 16 | B22: =COLUMNS($B22:B$22) -> 1 | C22: =COLUMNS($B22:C$22) -> 2 | D22: =COLUMNS($B22:D$22) -> 3 | E22: =COLUMNS($B22:E$22) -> 4 | F22: =COLUMNS($B22:F$22) -> 5
B23: RMSEL (kΩ) | C23: FSW (kHz) | D23: Mode | E23: RAMP | F23: f_table (kHz)
A24: =ROWS($A$24:A24) -> 1 | B24: Connect to AGND | C24: 800 | D24: FCCM | E24: RAMP4 | F24: =IF(Vfb_reg=0.9, 20.3, 26.5) -> 20.3
A25: =ROWS($A$24:A25) -> 2 | B25: 4.99 | C25: 800 | D25: FCCM | E25: RAMP3 | F25: =IF(Vfb_reg=0.9, 18.3, 19.9) -> 18.3
A26: =ROWS($A$24:A26) -> 3 | B26: 7.5 | C26: 800 | D26: FCCM | E26: RAMP2 | F26: =IF(Vfb_reg=0.9, 18.3, 19.9) -> 18.3
A27: =ROWS($A$24:A27) -> 4 | B27: 10.5 | C27: 800 | D27: FCCM | E27: RAMP1 | F27: =IF(Vfb_reg=0.9, 14, 15.3) -> 14
A28: =ROWS($A$24:A28) -> 5 | B28: 13.3 | C28: 1100 | D28: FCCM | E28: RAMP4 | F28: =IF(Vfb_reg=0.9, 27.9, 36.4) -> 27.9
A29: =ROWS($A$24:A29) -> 6 | B29: 16.9 | C29: 1100 | D29: FCCM | E29: RAMP3 | F29: =IF(Vfb_reg=0.9, 25.1, 27.4) -> 25.1
A30: =ROWS($A$24:A30) -> 7 | B30: 21 | C30: 1100 | D30: FCCM | E30: RAMP2 | F30: =IF(Vfb_reg=0.9, 25.1, 27.4) -> 25.1
A31: =ROWS($A$24:A31) -> 8 | B31: 24.9 | C31: 1100 | D31: FCCM | E31: RAMP1 | F31: =IF(Vfb_reg=0.9, 19.3, 21) -> 19.3
A32: =ROWS($A$24:A32) -> 9 | B32: 30.1 | C32: 1400 | D32: FCCM | E32: RAMP4 | F32: =IF(Vfb_reg=0.9, 35.5, 46.4) -> 35.5
A33: =ROWS($A$24:A33) -> 10 | B33: 35.7 | C33: 1400 | D33: FCCM | E33: RAMP3 | F33: =IF(Vfb_reg=0.9, 31.9, 34.9) -> 31.9
A34: =ROWS($A$24:A34) -> 11 | B34: 42.2 | C34: 1400 | D34: FCCM | E34: RAMP2 | F34: =IF(Vfb_reg=0.9, 31.9, 34.9) -> 31.9
A35: =ROWS($A$24:A35) -> 12 | B35: 48.7 | C35: 1400 | D35: FCCM | E35: RAMP1 | F35: =IF(Vfb_reg=0.9, 24.5, 26.8) -> 24.5
A36: =ROWS($A$24:A36) -> 13 | B36: 56.2 | C36: 800 | D36: Skip-mode | E36: RAMP4 | F36: =IF(Vfb_reg=0.9, 20.3, 26.5) -> 20.3
A37: =ROWS($A$24:A37) -> 14 | B37: 64.9 | C37: 800 | D37: Skip-mode | E37: RAMP3 | F37: =IF(Vfb_reg=0.9, 18.3, 19.9) -> 18.3
A38: =ROWS($A$24:A38) -> 15 | B38: 75 | C38: 800 | D38: Skip-mode | E38: RAMP2 | F38: =IF(Vfb_reg=0.9, 18.3, 19.9) -> 18.3
A39: =ROWS($A$24:A39) -> 16 | B39: 86.6 | C39: 800 | D39: Skip-mode | E39: RAMP1 | F39: =IF(Vfb_reg=0.9, 14, 15.3) -> 14
A40: =ROWS($A$24:A40) -> 17 | B40: 102 | C40: 1100 | D40: Skip-mode | E40: RAMP4 | F40: =IF(Vfb_reg=0.9, 27.9, 36.4) -> 27.9
A41: =ROWS($A$24:A41) -> 18 | B41: 118 | C41: 1100 | D41: Skip-mode | E41: RAMP3 | F41: =IF(Vfb_reg=0.9, 25.1, 27.4) -> 25.1
A42: =ROWS($A$24:A42) -> 19 | B42: 137 | C42: 1100 | D42: Skip-mode | E42: RAMP2 | F42: =IF(Vfb_reg=0.9, 25.1, 27.4) -> 25.1
A43: =ROWS($A$24:A43) -> 20 | B43: 158 | C43: 1100 | D43: Skip-mode | E43: RAMP1 | F43: =IF(Vfb_reg=0.9, 19.3, 21) -> 19.3
A44: =ROWS($A$24:A44) -> 21 | B44: 182 | C44: 1400 | D44: Skip-mode | E44: RAMP4 | F44: =IF(Vfb_reg=0.9, 35.5, 46.4) -> 35.5
A45: =ROWS($A$24:A45) -> 22 | B45: 210 | C45: 1400 | D45: Skip-mode | E45: RAMP3 | F45: =IF(Vfb_reg=0.9, 31.9, 34.9) -> 31.9
A46: =ROWS($A$24:A46) -> 23 | B46: 243 | C46: 1400 | D46: Skip-mode | E46: RAMP2 | F46: =IF(Vfb_reg=0.9, 31.9, 34.9) -> 31.9
A47: =ROWS($A$24:A47) -> 24 | B47: >= 280 (FLOAT) | C47: 1400 | D47: Skip-mode | E47: RAMP1 | F47: =IF(Vfb_reg=0.9, 24.5, 26.8) -> 24.5

Sheet Std. R and C Values (hidden)
A1: Hide Sheet
E2: Std. Resistors | J2: Capacitors
B3: Enter resistor value | C3: 124 | E3: E6 | G3: E96 | J3: Cap value | K3: 8 | L3: pF
E4: 100 | F4: 150 | G4: 100 | H4: 102 | K4: =IF(K3*10^12<10000,IF((10^(LOG(K3*10^12)-INT(LOG(K3*10^12))))-VLOOKUP((10^(LOG(K3*10^12)-INT(LOG(K3*10^12)))),c_s1:C_f1,1)<VLOOKUP((10^(LOG(K3*10^12)-INT(LOG(K3*10^12)))),c_s1:C_f1,2)-(10^(LOG(K3*10^12)-INT(LOG(K3*10^12)))),VLOOKUP((10^(LOG(K3*10^12)-INT(LOG(K3*10^12)))),c_s1:C_f1,1),VLOOKUP((10^(LOG(K3*10^12)-INT(LOG(K3*10^12)))),c_s1:C_f1,2))*10^INT(LOG(K3*10^12)),IF((10^(LOG(K3*10^12)-INT(LOG(K3*10^12))))-VLOOKUP((10^(LOG(K3*10^12)-INT(LOG(K3*10^12)))),C_s2:C_f2,1)<VLOOKUP((10^(LOG(K3*10^12)-INT(LOG(K3*10^12)))),C_s2:C_f2,2)-(10^(LOG(K3*10^12)-INT(LOG(K3*10^12)))),VLOOKUP((10^(LOG(K3*10^12)-INT(LOG(K3*10^12)))),C_s2:C_f2,1),VLOOKUP((10^(LOG(K3*10^12)-INT(LOG(K3*10^12)))),C_s2:C_f2,2))*10^INT(LOG(K3*10^12)))*10^-12 -> 6.8 | L4: pF
B5: Closest E6 Value | C5: =(IF((10^(LOG(C3)-INT(LOG(C3)))*100)-VLOOKUP((10^(LOG(C3)-INT(LOG(C3)))*100),E6_s:E6_f,1)<VLOOKUP((10^(LOG(C3)-INT(LOG(C3)))*100),E6_s:E6_f,2)-(10^(LOG(C3)-INT(LOG(C3)))*100),VLOOKUP((10^(LOG(C3)-INT(LOG(C3)))*100),E6_s:E6_f,1),VLOOKUP((10^(LOG(C3)-INT(LOG(C3)))*100),E6_s:E6_f,2)))*10^INT(LOG(C3))/100 -> 100 | E5: 150 | F5: 220 | G5: 102 | H5: 105
B6: Closest E12 Value | C6: =(IF((10^(LOG(C3)-INT(LOG(C3)))*100)-VLOOKUP((10^(LOG(C3)-INT(LOG(C3)))*100),E12_s:E12_f,1)<VLOOKUP((10^(LOG(C3)-INT(LOG(C3)))*100),E12_s:E12_f,2)-(10^(LOG(C3)-INT(LOG(C3)))*100),VLOOKUP((10^(LOG(C3)-INT(LOG(C3)))*100),E12_s:E12_f,1),VLOOKUP((10^(LOG(C3)-INT(LOG(C3)))*100),E12_s:E12_f,2)))*10^INT(LOG(C3))/100 -> 120 | E6: 220 | F6: 330 | G6: 105 | H6: 107 | J6: C values up to 10nF
B7: Closest E24 Value | C7: =(IF((10^(LOG(C3)-INT(LOG(C3)))*100)-VLOOKUP((10^(LOG(C3)-INT(LOG(C3)))*100),E24_s:E24_f,1)<VLOOKUP((10^(LOG(C3)-INT(LOG(C3)))*100),E24_s:E24_f,2)-(10^(LOG(C3)-INT(LOG(C3)))*100),VLOOKUP((10^(LOG(C3)-INT(LOG(C3)))*100),E24_s:E24_f,1),VLOOKUP((10^(LOG(C3)-INT(LOG(C3)))*100),E24_s:E24_f,2)))*10^INT(LOG(C3))/100 -> 120 | E7: 330 | F7: 470 | G7: 107 | H7: 110 | J7: 1 | K7: 1.2 | L7: =IF((10^(LOG(K3)-INT(LOG(K3))))-VLOOKUP((10^(LOG(K3)-INT(LOG(K3)))),c_s1:C_f1,1)<VLOOKUP((10^(LOG(K3)-INT(LOG(K3)))),c_s1:C_f1,2)-(10^(LOG(K3)-INT(LOG(K3)))),VLOOKUP((10^(LOG(K3)-INT(LOG(K3)))),c_s1:C_f1,1),VLOOKUP((10^(LOG(K3)-INT(LOG(K3)))),c_s1:C_f1,2)) -> 8.2
B8: Closest E48 Value | C8: =(IF((10^(LOG(C3)-INT(LOG(C3)))*100)-VLOOKUP((10^(LOG(C3)-INT(LOG(C3)))*100),E48_s:E48_f,1)<VLOOKUP((10^(LOG(C3)-INT(LOG(C3)))*100),E48_s:E48_f,2)-(10^(LOG(C3)-INT(LOG(C3)))*100),VLOOKUP((10^(LOG(C3)-INT(LOG(C3)))*100),E48_s:E48_f,1),VLOOKUP((10^(LOG(C3)-INT(LOG(C3)))*100),E48_s:E48_f,2)))*10^INT(LOG(C3))/100 -> 127 | E8: 470 | F8: 680 | G8: 110 | H8: 113 | J8: 1.2 | K8: 1.5
B9: Closest E96 Value | C9: =(IF((10^(LOG(C3)-INT(LOG(C3)))*100)-VLOOKUP((10^(LOG(C3)-INT(LOG(C3)))*100),E96_s:E96_f,1)<VLOOKUP((10^(LOG(C3)-INT(LOG(C3)))*100),E96_s:E96_f,2)-(10^(LOG(C3)-INT(LOG(C3)))*100),VLOOKUP((10^(LOG(C3)-INT(LOG(C3)))*100),E96_s:E96_f,1),VLOOKUP((10^(LOG(C3)-INT(LOG(C3)))*100),E96_s:E96_f,2)))*10^INT(LOG(C3))/100 -> 124 | E9: 680 | F9: 1000 | G9: 113 | H9: 115 | J9: 1.5 | K9: 1.8 | P9: Notes: | Q9: If I use the value in column K it rounds up
E10: E12 | G10: 115 | H10: 118 | J10: 1.8 | K10: 2.2 | Q10: If I use the value in column J it rounds down
E11: 100 | F11: 120 | G11: 118 | H11: 121 | J11: 2.2 | K11: 2.7
E12: 120 | F12: 150 | G12: 121 | H12: 124 | J12: 2.7 | K12: 3.3
E13: 150 | F13: 180 | G13: 124 | H13: 127 | J13: 3.3 | K13: 3.9
E14: 180 | F14: 220 | G14: 127 | H14: 130 | J14: 3.9 | K14: 4.7
E15: 220 | F15: 270 | G15: 130 | H15: 133 | J15: 4.7 | K15: 5.6
E16: 270 | F16: 330 | G16: 133 | H16: 137 | J16: 5.6 | K16: 6.8
E17: 330 | F17: 390 | G17: 137 | H17: 140 | J17: 6.8 | K17: 8.2
E18: 390 | F18: 470 | G18: 140 | H18: 143 | J18: 8.2 | K18: 10
E19: 470 | F19: 560 | G19: 143 | H19: 147 | J19: C values greater than 10nF
E20: 560 | F20: 680 | G20: 147 | H20: 150 | J20: 1 | K20: 1.5 | L20: =IF((10^(LOG(K3)-INT(LOG(K3))))-VLOOKUP((10^(LOG(K3)-INT(LOG(K3)))),C_s2:C_f2,1)<VLOOKUP((10^(LOG(K3)-INT(LOG(K3)))),C_s2:C_f2,2)-(10^(LOG(K3)-INT(LOG(K3)))),VLOOKUP((10^(LOG(K3)-INT(LOG(K3)))),C_s2:C_f2,1),VLOOKUP((10^(LOG(K3)-INT(LOG(K3)))),C_s2:C_f2,2)) -> 6.8
E21: 680 | F21: 820 | G21: 150 | H21: 154 | J21: 1.5 | K21: 2.2
E22: 820 | F22: 1000 | G22: 154 | H22: 158 | J22: 2.2 | K22: 3.3
E23: E24 | G23: 158 | H23: 162 | J23: 3.3 | K23: 4.7
E24: 100 | F24: 110 | G24: 162 | H24: 165 | J24: 4.7 | K24: 6.8
E25: 110 | F25: 120 | G25: 165 | H25: 169 | J25: 6.8 | K25: 10
E26: 120 | F26: 130 | G26: 169 | H26: 174
E27: 130 | F27: 150 | G27: 174 | H27: 178
E28: 150 | F28: 160 | G28: 178 | H28: 182
E29: 160 | F29: 180 | G29: 182 | H29: 187
E30: 180 | F30: 200 | G30: 187 | H30: 191
E31: 200 | F31: 220 | G31: 191 | H31: 196
E32: 220 | F32: 240 | G32: 196 | H32: 200
E33: 240 | F33: 270 | G33: 200 | H33: 205
E34: 270 | F34: 300 | G34: 205 | H34: 210
E35: 300 | F35: 330 | G35: 210 | H35: 215
E36: 330 | F36: 360 | G36: 215 | H36: 221
E37: 360 | F37: 390 | G37: 221 | H37: 226
E38: 390 | F38: 430 | G38: 226 | H38: 232
E39: 430 | F39: 470 | G39: 232 | H39: 237
E40: 470 | F40: 510 | G40: 237 | H40: 243
E41: 510 | F41: 560 | G41: 243 | H41: 249
E42: 560 | F42: 620 | G42: 249 | H42: 255
E43: 620 | F43: 680 | G43: 255 | H43: 261
E44: 680 | F44: 750 | G44: 261 | H44: 267
E45: 750 | F45: 820 | G45: 267 | H45: 274
E46: 820 | F46: 910 | G46: 274 | H46: 280
E47: 910 | F47: 1000 | G47: 280 | H47: 287
E48: E48 | G48: 287 | H48: 294
E49: 100 | F49: 105 | G49: 294 | H49: 301
E50: 105 | F50: 110 | G50: 301 | H50: 309
E51: 110 | F51: 115 | G51: 309 | H51: 316
E52: 115 | F52: 121 | G52: 316 | H52: 324
E53: 121 | F53: 127 | G53: 324 | H53: 332
E54: 127 | F54: 133 | G54: 332 | H54: 340
E55: 133 | F55: 140 | G55: 340 | H55: 348
E56: 140 | F56: 147 | G56: 348 | H56: 357
E57: 147 | F57: 154 | G57: 357 | H57: 365
E58: 154 | F58: 162 | G58: 365 | H58: 374
E59: 162 | F59: 169 | G59: 374 | H59: 383
E60: 169 | F60: 178 | G60: 383 | H60: 392
E61: 178 | F61: 187 | G61: 392 | H61: 402
E62: 187 | F62: 196 | G62: 402 | H62: 412
E63: 196 | F63: 205 | G63: 412 | H63: 422
E64: 205 | F64: 215 | G64: 422 | H64: 432
E65: 215 | F65: 226 | G65: 432 | H65: 442
E66: 226 | F66: 237 | G66: 442 | H66: 453
E67: 237 | F67: 249 | G67: 453 | H67: 464
E68: 249 | F68: 261 | G68: 464 | H68: 475
E69: 261 | F69: 274 | G69: 475 | H69: 487
E70: 274 | F70: 287 | G70: 487 | H70: 499
E71: 287 | F71: 301 | G71: 499 | H71: 511
E72: 301 | F72: 316 | G72: 511 | H72: 523
E73: 316 | F73: 332 | G73: 523 | H73: 536
E74: 332 | F74: 348 | G74: 536 | H74: 549
E75: 348 | F75: 365 | G75: 549 | H75: 562
E76: 365 | F76: 383 | G76: 562 | H76: 576
E77: 383 | F77: 402 | G77: 576 | H77: 590
E78: 402 | F78: 422 | G78: 590 | H78: 604
E79: 422 | F79: 442 | G79: 604 | H79: 619
E80: 442 | F80: 464 | G80: 619 | H80: 634
E81: 464 | F81: 487 | G81: 634 | H81: 649
E82: 487 | F82: 511 | G82: 649 | H82: 665
E83: 511 | F83: 536 | G83: 665 | H83: 681
E84: 536 | F84: 562 | G84: 681 | H84: 698
E85: 562 | F85: 590 | G85: 698 | H85: 715
E86: 590 | F86: 619 | G86: 715 | H86: 732
E87: 619 | F87: 649 | G87: 732 | H87: 750
E88: 649 | F88: 681 | G88: 750 | H88: 768
E89: 681 | F89: 715 | G89: 768 | H89: 787
E90: 715 | F90: 750 | G90: 787 | H90: 806
E91: 750 | F91: 787 | G91: 806 | H91: 825
E92: 787 | F92: 825 | G92: 825 | H92: 845
E93: 825 | F93: 866 | G93: 845 | H93: 866
E94: 866 | F94: 909 | G94: 866 | H94: 887
E95: 909 | F95: 953 | G95: 887 | H95: 909
E96: 953 | F96: 1000 | G96: 909 | H96: 931
G97: 931 | H97: 953
G98: 953 | H98: 976
G99: 976 | H99: 1000

Sheet Extra (hidden)
B3: Validation Options
B4: Open
B5: Complete
B6: Not Applicable

Sheet About
F2: © Copyright 2024 Texas Instruments Incorporated. All rights reserved.
B4: About
B5: Version Number | C5: 1.0.0 | M5: Table of Contents
B34: Version History
B35: Version | C35: Change List Description
B36: 1.0.0 | C36: Initial Release

Sheet Help
E2: © Copyright 2024 Texas Instruments Incorporated. All rights reserved.
B4: Help
K5: Table of Contents
B6: For any futher assistance on this tool, please post your question in the following forum - E2E Power Management Forum
B8: Getting Started with this tool?
B10: 1. Reference the product datasheet, found at the URLs below, for information about the particular device.
C12: TPS54KB2x: | D12: https://www.ti.com/product/TPS54KB20
C13: TPS54KC23: | D13: https://www.ti.com/product/TPS54KC23
B15: 2. Go to the Table of Contents for tool descriptions and links to specific worksheets.
C17: Link: | D17: Table of Contents
B19: 3. Use the "Key" on each worksheet for guidance. The required inputs typically follow the convention below:
D21: = Input
